fUSD/lending_fUSD_20240216
["ID","MTS","AMOUNT","RATE_DAILY","PERIOD"]
[314228625,1708102270215,4209.94359131,0.00023,2]
[314228626,1708102270240,4209.94359131,0.00023,2]
[314228627,1708102270265,4209.94359131,0.00023,2]
[314228628,1708102270289,4209.94359131,0.00023,2]
[314228629,1708102270316,5148313.92869396,0.00023,2]
[314228630,1708102270340,70000.0,0.00023,2]
[314228631,1708102270370,700000.0,0.00023,2]
[314228632,1708102270391,936817.69457523,0.00023,2]
[314228634,1708102391697,150.0,9.8e-05,2]
[314228635,1708102391717,55.0,9.8e-05,2]
[314228636,1708102395273,209.67659214,0.0001305,2]
[314228637,1708102395294,3273.8715174,0.0001305,2]
[314228638,1708102427428,6160.80721672,0.000142,2]
[314228639,1708102432312,549581.35759376,0.00023,2]
[314228640,1708102448023,200.0,0.0001634,2]
[314228641,1708102449422,6887.68109483,0.0002,2]
[314228642,1708102458750,155.0,0.0002,2]
[314228643,1708102462871,158.34693503,0.00018,2]
[314228645,1708102468990,4084.7966536,0.00025,30]
[314228646,1708102469055,4282.46067838,0.000232,2]
[314228648,1708102988584,468.54244741,0.000232,2]
[314228649,1708103006552,468.54244741,0.000232,2]
[314228650,1708103026551,468.54244741,0.000232,2]
[314228651,1708103042576,468.54244741,0.000232,2]
[314228652,1708103048377,150.73300819,0.00023177,2]
[314228653,1708103060565,167.72052616,0.000232,2]
[314228655,1708103207108,-450.0,0.00025,3]
[314228656,1708103207127,-190.55,0.00025,5]
[314228657,1708103207147,-174.58890705,0.0002509,2]
[314228658,1708103358553,-43.2152356,0.0002509,2]
[314228659,1708103358573,-2034.9790644,0.0002509,2]
[314228668,1708103431847,-10580.82942033,0.0002509,2]
[314228669,1708103431858,-321.28908166,0.00026999,2]
[314228670,1708103431868,-500.0,0.00027,3]
[314228671,1708103431878,-3524.44333971,0.000272,2]
[314228672,1708103431888,-155.0,0.00027398,2]
[314228673,1708103431897,-550.0,0.00029,3]
[314228674,1708103431906,-300.0,0.00029899,2]
[314228675,1708103431915,-826.61972608,0.0003,2]
[314228676,1708103431925,-299.51737992,0.000301,2]
[314228677,1708103431934,-206.0,0.00030138,2]
[314228678,1708103431943,-600.0,0.00031,3]
[314228679,1708103431952,-499.99,0.00031,2]
[314228680,1708103431962,-5047.26111988,0.000314,30]
[314228681,1708103431971,-529.77,0.00031406,2]
[314228682,1708103431980,-592.59,0.00032697,2]
[314228683,1708103431989,-2757.57,0.00032914,2]
[314228684,1708103431999,-650.0,0.00033,3]
[314228685,1708103432008,-2000.0,0.00033,5]
[314228686,1708103432018,-150.0,0.00033008,2]
[314228687,1708103432028,-150.22,0.00033011,2]
[314228688,1708103432038,-5364.5,0.00033039,2]
[314228689,1708103432048,-250.0,0.00033061,111]
[314228690,1708103432057,-150.0,0.00033061,2]
[314228691,1708103432068,-200.0,0.00033079,2]
[314228692,1708103432077,-250.0,0.00033083,2]
[314228693,1708103432087,-786.03,0.00033225,2]
[314228694,1708103432097,-500.0,0.00033225,2]
[314228695,1708103432107,-160.15,0.0003323,2]
[314228696,1708103432117,-23900.0,0.00033447,2]
[314228697,1708103432126,-206.0,0.00033456,8]
[314228698,1708103432136,-2000.0,0.00033474,2]
[314228699,1708103432145,-250.0,0.00033564,2]
[314228700,1708103432155,-529.77,0.0003367,2]
[314228701,1708103432165,-160.15,0.00033807,2]
[314228702,1708103432175,-200.0,0.00034257,2]
[314228703,1708103432186,-374.18,0.00034257,2]
[314228704,1708103432195,-200.0,0.00034257,2]
[314228705,1708103432204,-880.0,0.00034295,2]
[314228706,1708103432214,-592.59,0.00034341,2]
[314228707,1708103432223,-160.15,0.00034384,2]
[314228708,1708103432233,-600.92,0.00034496,2]
[314228709,1708103432242,-150.22,0.00034662,2]
[314228711,1708103432252,-160.15,0.00034961,2]
[314228713,1708103432262,-700.0,0.00035,3]
[314228715,1708103432272,-74287.43533803,0.00035,4]
[314228717,1708103432282,-26053.7669,0.0003558,2]
[314228719,1708103432291,-1392.9506207,0.000356,2]
[314228720,1708103432301,-153.98235648,0.0003567,2]
[314228722,1708103432311,-153.98235648,0.0003567,2]
[314228724,1708103432322,-153.98235648,0.0003567,2]
[314228726,1708103432331,-153.98235648,0.0003567,2]
[314228728,1708103432342,-153.98235648,0.0003567,2]
[314228729,1708103432354,-100000.0,0.0003568,2]
[314228730,1708103432363,-240.00005433,0.000357,2]
[314228731,1708103432373,-622.9281254,0.000359,2]
[314228732,1708103432836,-377.0718746,0.000359,2]
[314228733,1708103432846,-529.77,0.00035934,2]
[314228734,1708103432855,-592.59,0.00035984,2]
[314228735,1708103432864,-150.22,0.00036313,2]
[314228736,1708103432874,-2500.0,0.00036367,2]
[314228737,1708103432883,-142.2798504,0.00036457,2]
[314228738,1708103432895,-11.70250608,0.00036457,2]
[314228739,1708103432904,-1344.03749391,0.00036467,14]
[314228740,1708103433032,-3219.43265722,0.00036467,14]
[314228741,1708103433044,-632.83725849,0.00036467,14]
[314228742,1708103438017,-191.84,0.00032618,120]
[314228743,1708103438026,-19032.22443626,0.00036467,14]
[314228744,1708103438035,-1440.37640151,0.00036475,13]
[314228745,1708103438044,-2004.49596135,0.00036491,13]
[314228746,1708103438053,-206.0,0.00036774,14]
[314228747,1708103438063,-153.98235648,0.0003679,2]
[314228748,1708103438073,-16346.999999,0.000368,2]
[314228749,1708103438082,-1392.9506207,0.000372,2]
[314228750,1708103438091,-240.00005433,0.00037445,2]
[314228751,1708103438100,-592.59,0.00037628,2]
[314228752,1708103438109,-180.0,0.00037671,2]
[314228753,1708103438119,-150.22,0.00037963,2]
[314228754,1708103438128,-153.98235648,0.0003799,2]
[314228755,1708103438138,-10422.43300722,0.00038,30]
[314228756,1708103438149,-529.77,0.00038198,2]
[314228757,1708103438159,-560.09,0.00038356,15]
[314228758,1708103438169,-152.17,0.00038356,2]
[314228759,1708103438178,-150.0,0.0003851,2]
[314228760,1708103438187,-880.0,0.00038582,2]
[314228761,1708103438196,-807.63361911,0.000388,9]
[314228762,1708103438206,-1392.9506207,0.000388,2]
[314228763,1708103438215,-1349.75030943,0.00038815,2]
[314228764,1708103438224,-179856.28865168,0.0003888,2]
[314228765,1708103438234,-94685.2835895,0.000389,3]
[314228766,1708103438243,-154.54387429,0.00039,2]
[314228767,1708103438252,-588.74602556,0.00039152,11]
[314228768,1708103438261,-240.00005433,0.0003919,2]
[314228769,1708103438271,-592.59,0.00039272,2]
[314228770,1708103438281,-17721.08844974,0.000395,20]
[314228771,1708103438291,-150.22,0.00039614,2]
[314228772,1708103438301,-10304.63355422,0.000398,4]
[314228773,1708103438310,-245000.0,0.000398,2]
[314228774,1708103438319,-815.1312,0.000398,2]
[314228775,1708103438330,-11076.77576378,0.00039891,2]
[314228776,1708103438342,-173009.9749145,0.000399,3]
[314228777,1708103438351,-152.19835231,0.000399,6]
[314228778,1708103438361,-1453.09538957,0.00039956,13]
[314228779,1708103438373,-25043.60124901,0.0004,30]
[314228780,1708103438382,-255.0,0.0004,12]
[314228781,1708103438391,-255.0,0.0004,12]
[314228782,1708103438400,-71156.7810591,0.00040078,5]
[314228783,1708103438410,-206.0,0.00040092,21]
[314228784,1708103438420,-10915.78222762,0.00040152,2]
[314228785,1708103438430,-527.07330151,0.00040152,3]
[314228786,1708103438439,-642.37818507,0.00040152,2]
[314228787,1708103438449,-562.65144559,0.00040152,2]
[314228788,1708103438459,-4000.6,0.00040152,2]
[314228789,1708103438468,-5015.42445789,0.00040152,120]
[314228790,1708103438480,-1392.7800004,0.00040152,120]
[314228791,1708103438573,-456.35152185,0.00040152,120]
[314228792,1708103439426,-1046.95585243,0.00040152,120]
[314228793,1708103439439,-1275.75330298,0.00040152,120]
[314228794,1708103439451,-1710.59285682,0.00040152,120]
[314228804,1708103440583,-733.38335636,0.00036499,13]
[314228805,1708103440593,-1258.38644213,0.00040152,120]
[314228806,1708103440602,-988.01097599,0.00040152,2]
[314228807,1708103440611,-159.19673808,0.00040152,2]
[314228808,1708103440621,-159.14480097,0.00040152,2]
[314228809,1708103440631,-172.30354092,0.00040152,2]
[314228810,1708103440640,-664.63290625,0.00040152,15]
[314228811,1708103440649,-1268.63861743,0.00040152,2]
[314228812,1708103440659,-1238.32101979,0.00040152,7]
[314228813,1708103440671,-310.75095342,0.00040152,7]
[314228814,1708103440682,-6235.65860793,0.00040152,7]
[314228815,1708103440701,-2607.25849507,0.00040152,7]
[314228816,1708103440712,-315.11968451,0.00040152,7]
[314228817,1708103440724,-1648.87536408,0.00040152,7]
[314228818,1708103440736,-1367.24383837,0.00040152,7]
[314228819,1708103441464,-2477.0,0.00040152,7]
[314228820,1708103441577,-287.40205571,0.00040152,7]
[314228821,1708103441589,-589.39589205,0.00040152,7]
[314228822,1708103441598,-10000.0,0.00040152,7]
[314228823,1708103441607,-4594.82847439,0.00040152,4]
[314228824,1708103441617,-491.37,0.00040152,10]
[314228826,1708103441626,-3601.60653045,0.00040152,2]
[314228828,1708103441635,-1645.72289175,0.00040152,120]
[314228830,1708103441644,-696.73272672,0.00040152,2]
[314228832,1708103441653,-191.87819356,0.00040152,2]
[314228834,1708103441662,-20000.0,0.00040152,2]
[314228836,1708103441671,-353.04016486,0.00040152,2]
[314228838,1708103441680,-410.52138263,0.00040152,120]
[314228840,1708103441689,-1133.87395336,0.00040152,2]
[314228841,1708103441698,-150.00039894,0.00040152,120]
[314228842,1708103441707,-12802.27,0.00040152,120]
[314228843,1708103441715,-1349.75030931,0.00040394,5]
[314228844,1708103441724,-807.63361909,0.00040405,9]
[314228845,1708103441733,-529.77,0.00040462,2]
[314228846,1708103441743,-152.17,0.00040753,2]
[314228847,1708103441752,-152.34,0.000408,4]
[314228848,1708103441761,-1453.09538951,0.00040897,15]
[314228849,1708103441770,-592.59,0.00040916,2]
[314228850,1708103441780,-240.00005433,0.00040935,3]
[314228851,1708103441789,-227.1993649,0.00041,30]
[314228852,1708103441798,-1000.0,0.00041095,2]
[314228853,1708103441807,-227.05,0.000411,2]
[314228854,1708103441817,-1453.09538951,0.00041839,16]
[314228855,1708103442017,-1349.75030931,0.00041973,5]
[314228856,1708103442044,-150.0,0.00041999,2]
[314228857,1708103442054,-965.23195016,0.00042,7]
[314228858,1708103442063,-168.33353086,0.00042,7]
[314228859,1708103442073,-4182.08418051,0.00042,5]
[314228860,1708103442084,-200.0,0.00042,2]
[314228861,1708103442093,-4000.0,0.00042,2]
[314228862,1708103442102,-807.63361909,0.0004201,10]
[314228863,1708103442111,-9121.42664287,0.00042042,8]
[314228864,1708103442121,-234.70490858,0.00042042,5]
[314228865,1708103442131,-1912.44049578,0.00042074,8]
[314228866,1708103442140,-206.63203189,0.0004209,5]
[314228867,1708103442149,-560.09,0.00042092,15]
[314228868,1708103442160,-210.49728641,0.00042106,5]
[314228869,1708103442169,-544.45184635,0.00042106,5]
[314228870,1708103442179,-687.46482478,0.00042443,30]
[314228871,1708103442189,-10001.40533631,0.00042489,21]
[314228872,1708103442199,-173.0,0.000425,8]
[314228873,1708103442209,-240.00005433,0.0004268,4]
[314228874,1708103442219,-529.77,0.00042726,2]
[314228875,1708103442229,-1453.09538951,0.0004278,17]
[314228876,1708103442240,-880.0,0.00042869,2]
[314228877,1708103442250,-152.34,0.000429,4]
[314228878,1708103442259,-5008.08,0.000429,2]
[314228879,1708103442269,-173.0,0.00043,9]
[314228880,1708103442279,-302.0,0.00043,7]
[314228881,1708103442289,-152.17,0.00043151,2]
[314228882,1708103442298,-206.0,0.0004341,27]
[314228883,1708103442307,-173.0,0.000435,10]
[314228884,1708103442317,-1349.75030931,0.00043552,5]
[314228885,1708103442330,-807.63361909,0.00043615,11]
[314228886,1708103442340,-1453.09538951,0.00043721,18]
[314228887,1708103442351,-200.0,0.00043804,20]
[314228888,1708103442361,-173.0,0.00044,11]
[314228889,1708103442373,-150.0,0.00044011,2]
[314228890,1708103442382,-22678.74155717,0.00044091,2]
[314228891,1708103442393,-200.0,0.000441,2]
[314228892,1708103442404,-152.0,0.00044106,3]
[314228893,1708103442413,-154.66808638,0.00044144,2]
[314228894,1708103442423,-688.0339892,0.00044381,6]
[314228895,1708103442433,-240.00005433,0.00044426,6]
[314228896,1708103442443,-153.8117539,0.00044462,30]
[314228897,1708103442454,-22015.86952889,0.0004459,10]
[314228901,1708103443337,-11371.64352176,0.0004459,10]
[314228902,1708103443350,-14731.905,0.0004459,10]
[314228903,1708103443428,-16113.22839759,0.0004459,10]
[314228904,1708103443459,-377.96018289,0.0004459,10]
[314228905,1708103443476,-432.83037536,0.0004459,10]
[314228906,1708103443496,-5347.94962657,0.0004459,10]
[314228907,1708103445877,-765.39442604,0.0004459,10]
[314228908,1708103445887,-999.03647211,0.000446,2]
[314228909,1708103445900,-905.64504445,0.000446,2]
[314228910,1708103446121,-1663.33283344,0.000446,2]
[314228911,1708103446130,-1037.38728704,0.00044662,19]
[314228912,1708103446143,-415.70810247,0.00044662,19]
[314228913,1708103446153,-2000.0,0.000447,2]
[314228914,1708103446163,-2000.0,0.000447,2]
[314228915,1708103446173,-152.34,0.000449,5]
[314228916,1708103446182,-529.77,0.00044989,2]
[314228917,1708103446192,-404.90396778,0.00045,4]
[314228918,1708103446202,-5000.0,0.00045,15]
[314228919,1708103446211,-10478.88670638,0.00045,10]
[314228921,1708104141432,-450.0,0.00025,3]
[314228922,1708104141456,-500.0,0.00027,3]
[314228923,1708104141481,-205.0,0.00028138,2]
[314228924,1708104141504,-550.0,0.00029,3]
[314228925,1708104141527,-351.43697649,0.00030137,4]
[314228926,1708104141550,-600.0,0.00031,3]
[314228927,1708104141575,-224.04406869,0.00032799,2]
[314228928,1708104141598,-400.0,0.00032899,3]
[314228929,1708104141621,-150.0,0.00032899,2]
[314228930,1708104141645,-299.5889,0.000329,2]
[314228931,1708104141671,-8000.0,0.000329,2]
[314228932,1708104141695,-163.08152042,0.000329,2]
[314228933,1708104141719,-296.05357472,0.00033,5]
[314228934,1708104141743,-650.0,0.00033,3]
[314228935,1708104141766,-155.0,0.00033353,2]
[314228936,1708104141788,-150.0,0.0003338,2]
[314228937,1708104141811,-641.31,0.00033407,2]
[314228938,1708104141833,-3371.33,0.00033432,2]
[314228939,1708104141855,-499.99,0.00033432,2]
[314228940,1708104141877,-500.0,0.00033486,2]
[314228941,1708104141905,-23900.0,0.00033512,2]
[314228942,1708104141929,-200.0,0.00033539,2]
[314228943,1708104141952,-1908.4,0.00033567,2]
[314228944,1708104141974,-250.0,0.00033595,2]
[314228945,1708104141999,-160.15,0.00033615,2]
[314228946,1708104142022,-200.0,0.0003368,2]
[314228947,1708104142045,-1185.34,0.00033707,2]
[314228948,1708104142069,-2000.0,0.00033721,2]
[314228949,1708104142099,-965.31,0.00033788,2]
[314228950,1708104142127,-8346.84,0.00033848,2]
[314228951,1708104142154,-200.0,0.00033927,2]
[314228952,1708104142179,-200.0,0.00033998,2]
[314228953,1708104142203,-171.52,0.00034042,120]
[314228954,1708104142226,-371.14,0.00034042,2]
[314228955,1708104142250,-160.15,0.00034053,2]
[314228956,1708104142273,-5780.0,0.0003409,2]
[314228957,1708104142297,-155.4986,0.00034157,2]
[314228958,1708104142322,-8000.0,0.000342,2]
[314228959,1708104142346,-152.11,0.00034257,2]
[314228960,1708104142369,-2220.0,0.000343,3]
[314228961,1708104142396,-160.15,0.00034491,2]
[314228962,1708104142419,-476.170852,0.000345,2]
[314228963,1708104142443,-205.0,0.0003451,13]
[314228964,1708104142466,-2396.057451,0.0003452,2]
[314228965,1708104142490,-905.79527,0.0003452,2]
[314228966,1708104142513,-7667.383845,0.0003452,2]
[314228967,1708104142537,-7362.48,0.00034521,2]
[314228968,1708104142560,-181.66,0.00034546,2]
[314228969,1708104142584,-169.79,0.00034757,2]
[314228970,1708104142606,-3594.086177,0.00034794,2]
[314228971,1708104142630,-1358.692905,0.00034794,2]
[314228972,1708104142655,-11501.075768,0.00034794,2]
[314228973,1708104142676,-714.256279,0.000348,2]
[314228974,1708104142698,-1834.27,0.00034884,2]
[314228975,1708104142721,-2557.59739521,0.00034921,2]
[314228976,1708104142745,-160.15,0.00034929,2]
[314228977,1708104142768,-4792.114903,0.00034931,2]
[314228978,1708104142791,-1811.59054,0.00034931,2]
[314228979,1708104142815,-15334.767691,0.00034931,2]
[314228980,1708104142839,-952.341705,0.00035,2]
[314228981,1708104142872,-700.0,0.00035,3]
[314228982,1708104143491,398.63,0.00033201,2]
[314228985,1708104180558,2173.9682,0.00034694,2]
[314228986,1708104205673,825.37,0.00032339,2]
[314228987,1708104205868,825.37,0.00034603,2]
[314228989,1708104217562,-5990.143629,0.00035068,2]
[314228990,1708104217585,-2264.488175,0.00035068,2]
[314228991,1708104217609,-19168.459614,0.00035068,2]
[314228992,1708104217631,-250.0,0.00035099,2]
[314228993,1708104217654,-1824.6023,0.00035142,2]
[314228994,1708104217678,-1000.0,0.00035142,2]
[314228995,1708104217703,-58864.8105,0.00035242,2]
[314228996,1708104217726,-1927.9937,0.00035242,2]
[314228997,1708104217748,-208.58,0.00035332,3]
[314228998,1708104217771,-311.81,0.00035334,2]
[314228999,1708104217794,-8386.20108,0.00035342,2]
[314229000,1708104217817,-3170.283445,0.00035342,2]
[314229001,1708104217840,-26835.843459,0.00035342,2]
[314229002,1708104217864,-250.0,0.00035357,111]
[314229003,1708104217888,-160.15,0.00035367,2]
[314229004,1708104217910,-150.0,0.00035367,2]
[314229005,1708104217933,-152.11,0.00035399,2]
[314229006,1708104217955,-965.31,0.00035432,2]
[314229007,1708104217979,-463.68993175,0.0003548,7]
[314229008,1708104218002,-160.00003622,0.0003548,2]
[314229009,1708104218025,-8256.47976888,0.0003548,2]
[314229010,1708104218047,-46640.622,0.0003548,2]
[314229011,1708104218069,-3161.6703,0.0003558,2]
[314229012,1708104218091,-161.478,0.0003558,2]
[314229013,1708104218114,-1000.0,0.0003558,2]
[314229014,1708104218136,-2947.5388,0.0003558,2]
[314229015,1708104218160,-245000.0,0.0003558,2]
[314229016,1708104218182,-1190.427132,0.000356,2]
[314229017,1708104218204,-8000.0,0.000356,2]
[314229018,1708104218227,-7362.48,0.00035798,2]
[314229019,1708104218249,-286.83632709,0.0003599,2]
[314229020,1708104218272,-9584.229806,0.00036,2]
[314229021,1708104218295,-1666.597985,0.00036,2]
[314229022,1708104218319,-3623.181081,0.00036,2]
[314229023,1708104218348,-30669.535382,0.00036,2]
[314229024,1708104218373,-210.0,0.00036189,2]
[314229025,1708104218397,-181.66,0.00036273,2]
[314229026,1708104218423,-6619.81969256,0.00036514,14]
[314229027,1708104218449,-2377.59727536,0.00036522,13]
[314229028,1708104218475,-152.11,0.00036541,2]
[314229029,1708104218510,-2535.87,0.00036647,2]
[314229030,1708104218537,-151.32,0.00036718,2]
[314229031,1708104218562,-825.37,0.00036867,2]
[314229032,1708104218586,-6000.0,0.00037,2]
[314229033,1708104218610,-750.0,0.00037,3]
[314229034,1708104226757,169.68,0.0003597,2]
[314229035,1708104263704,547.4363,0.00035142,2]
[314229036,1708104270839,2705.0,0.00034257,2]
[314229037,1708104312121,200.26125164,0.00034086,2]
[314229038,1708104326156,6000.0,0.000329,2]
[314229039,1708104381788,1994.203383,0.000345,2]
[314229040,1708104382130,2991.305075,0.000348,2]
[314229041,1708104382245,2939.19855454,0.000329,3]
[314229042,1708104382470,3988.406766,0.00035,2]
[314229043,1708104383285,4985.508458,0.000356,2]
[314229044,1708104384543,6979.711842,0.00036,2]
[314229046,1708104399132,-150.0,0.00037218,3]
[314229047,1708104399152,-249.73190966,0.00037219,2]
[314229048,1708104399654,1775.96396484,0.0003653,13]
[314229050,1708104404231,1632.88808586,0.000329,3]
[314229051,1708104405926,12548.822606,0.0003452,2]
[314229052,1708104406210,18823.233909,0.00034794,2]
[314229053,1708104406567,25097.645213,0.00034931,2]
[314229054,1708104406820,31372.056516,0.00035068,2]
[314229055,1708104407100,43920.879122,0.00035342,2]
[314229056,1708104407361,50195.290426,0.00036,2]
[314229057,1708104407425,3084.689488,0.0003452,2]
[314229058,1708104407714,4627.034232,0.00034794,2]
[314229059,1708104407968,6169.378976,0.00034931,2]
[314229060,1708104408233,7711.723721,0.00035068,2]
[314229061,1708104408567,10796.413209,0.00035342,2]
[314229062,1708104408942,12338.757953,0.00036,2]
[314229064,1708104421761,947.246607,0.000345,2]
[314229065,1708104422607,1420.86991,0.000348,2]
[314229066,1708104423199,1894.493214,0.00035,2]
[314229068,1708104427231,2368.116518,0.000356,2]
[314229069,1708104427344,3315.363125,0.00036,2]
[314229070,1708104441417,1632.88808586,0.00036,5]
[314229071,1708104457415,1143.0216601,0.00036,5]
[314229072,1708104464597,449.942138,0.000345,2]
[314229073,1708104464666,674.913207,0.000348,2]
[314229075,1708104465049,899.884277,0.00035,2]
[314229077,1708104465344,1124.855346,0.000356,2]
[314229079,1708104465663,1574.797485,0.00036,2]
[314229080,1708104473410,1143.0216601,0.00036,5]
[314229081,1708104489422,1143.0216601,0.00036,5]
[314229082,1708104513413,1143.0216601,0.00036,5]
[314229084,1708104537848,1143.0216601,0.00036,5]
[314229091,1708104549870,1143.0216601,0.00036,5]
[314229093,1708104567849,1143.0216601,0.00036,5]
[314229094,1708104589906,1143.0216601,0.00036,5]
[314229096,1708104607860,315.78672986,0.00036,5]
[314229155,1708104633554,-198.07,0.00037614,2]
[314229156,1708104633563,-152.11,0.00037683,2]
[314229157,1708104633572,-181.66,0.00038001,2]
[314229158,1708104633582,-1000.0,0.00038025,2]
[314229159,1708104633593,-367.92105155,0.00038041,2]
[314229160,1708104633605,-4049.55894845,0.00038041,2]
[314229161,1708104633615,-250.0,0.00038086,2]
[314229162,1708104633625,-200.0,0.00038131,2]
[314229163,1708104633636,-2000.0,0.00038183,2]
[314229164,1708104633646,-500.0,0.00038292,2]
[314229165,1708104633656,-150.0,0.00038355,5]
[314229166,1708104633667,-549.72,0.00038356,15]
[314229167,1708104633677,-48.83051976,0.00038356,2]
[314229168,1708104633690,-120.73948024,0.00038356,2]
[314229169,1708104633700,-151.51,0.00038356,2]
[314229170,1708104633710,-325.84051956,0.00038394,2]
[314229171,1708104633725,-317.69948044,0.00038394,2]
[314229172,1708104633735,-179.81858011,0.00038608,30]
[314229173,1708104633744,-259.99611821,0.00038879,5]
[314229174,1708104633755,-310.88582164,0.00038968,2]
[314229175,1708104634445,171.43,0.00030377,2]
[314229180,1708104638042,-7094.97277944,0.00038968,2]
[314229181,1708104638051,-668.50898977,0.00038968,9]
[314229182,1708104638060,-2500.0,0.00038968,2]
[314229183,1708104638068,-4085.88969823,0.00038978,2]
[314229184,1708104638107,-2231.48520177,0.00038978,2]
[314229185,1708104638116,-12375.00779893,0.00039,2]
[314229186,1708104638125,-2152.1279993,0.00039068,2]
[314229187,1708104638207,-1712.1662275,0.00039068,2]
[314229193,1708104638870,-910.035438,0.00039068,2]
[314229194,1708104638906,-5772.87390934,0.00039068,2]
[314229195,1708104638918,-19258.23229754,0.00039068,2]
[314229196,1708104638941,-1123.13901484,0.00039068,2]
[314229197,1708104638953,-742.07312955,0.00039068,2]
[314229198,1708104638964,-2000.0,0.00039068,2]
[314229199,1708104639016,-2276.74087395,0.00039068,2]
[314229200,1708104639027,-1665.43237019,0.00039068,2]
[314229203,1708104641380,-258488.94783979,0.00039068,2]
[314229204,1708104641389,-92976.1816,0.00039068,2]
[314229205,1708104641399,-10244.5452,0.00039068,7]
[314229206,1708104641407,-1044.35236561,0.00039077,2]
[314229207,1708104641417,-114572.6838,0.00039078,2]
[314229208,1708104641426,-498.7415,0.00039078,7]
[314229209,1708104641436,-3818.8153,0.00039078,2]
[314229210,1708104641444,-1000.0,0.00039078,2]
[314229211,1708104641454,-825.37,0.00039131,2]
[314229212,1708104641463,-191.22421806,0.00039148,2]
[314229213,1708104641472,-85508.3766057,0.00039158,4]
[314229214,1708104641481,-460.02564019,0.00039175,2]
[314229215,1708104641490,-116341.08,0.00039178,2]
[314229216,1708104641499,-163.0815204,0.00039202,2]
[314229217,1708104641508,-329.73,0.0003926,2]
[314229218,1708104641516,-4417.48,0.00039448,2]
[314229219,1708104641526,-172.0,0.000395,2]
[314229220,1708104641534,-181.66,0.00039728,2]
[314229221,1708104641544,-150.94042826,0.00039861,2]
[314229222,1708104641552,-205.0,0.00039883,2]
[314229223,1708104641562,-150.1,0.0004,2]
[314229224,1708104641572,-168.0,0.0004,3]
[314229225,1708104641581,-2000.0,0.0004,4]
[314229226,1708104641593,-409.1775267,0.0004,4]
[314229227,1708104641602,-345.0,0.0004,12]
[314229228,1708104641612,-5444.55054503,0.0004,2]
[314229229,1708104641622,-643.54,0.00040038,2]
[314229230,1708104641632,-151.51,0.000401,2]
[314229231,1708104641642,-199.31,0.00040112,2]
[314229232,1708104641651,-7405.858601,0.0004032,2]
[314229233,1708104641661,-172.0,0.000405,4]
[314229234,1708104641671,-668.50898973,0.00040549,9]
[314229235,1708104641681,-329.73,0.00040733,2]
[314229236,1708104641691,-530.0944826,0.000408,2]
[314229237,1708104641700,-4417.48,0.00040856,2]
[314229238,1708104641709,-85508.3766057,0.0004089,6]
[314229239,1708104641719,-153.5,0.000409,4]
[314229240,1708104641728,-153.5,0.000409,4]
[314229241,1708104641737,-1253.31,0.000409,4]
[314229242,1708104641747,-1253.31,0.000409,4]
[314229243,1708104641756,-1253.31,0.000409,4]
[314229244,1708104641767,-1253.31,0.000409,4]
[314229245,1708104641777,-1253.31,0.000409,4]
[314229246,1708104641786,-1253.31,0.000409,4]
[314229248,1708104641796,-1253.31,0.000409,4]
[314229250,1708104641805,-1253.31,0.000409,4]
[314229251,1708104641814,-1253.31,0.000409,4]
[314229252,1708104641823,-1253.31,0.000409,4]
[314229253,1708104641834,-1253.31,0.000409,4]
[314229254,1708104641846,-1253.31,0.000409,4]
[314229255,1708104641855,-1253.31,0.000409,4]
[314229256,1708104641864,-1253.31,0.000409,4]